[Event "Titled Tuesday Blitz July 11 Early 2023"]
[White "JonSnowNW1"]
[Black "Borrmann, Laurenz"]
[BlackFideId "312187930"]
[WhiteElo "2443"]
[BlackElo "2588"]
[Result "1-0"]
[Round "7"]
[TimeControl "180+2"]
[Date "2023.07.11"]
[WhiteClock "0:00:10"]
[BlackClock "0:00:24"]
[Board "73"]

1. c4 {[%clk 0:03:00]}  e5 {[%clk 0:02:57]} 2. Nc3 {[%clk 0:02:59]}  Nf6 {[%clk 0:02:57]} 3. g3 {[%clk 0:02:59]}  Bb4 {[%clk 0:02:33]} 4. e4 {[%clk 0:02:57]}  Bxc3 {[%clk 0:02:28]} 5. dxc3 {[%clk 0:02:58]}  d6 {[%clk 0:02:29]} 6. f3 {[%clk 0:02:56]}  a5 {[%clk 0:02:28]} 7. Nh3 {[%clk 0:02:55]}  O-O {[%clk 0:02:25]} 8. Nf2 {[%clk 0:02:53]}  a4 {[%clk 0:02:25]} 9. Be3 {[%clk 0:02:47]}  Be6 {[%clk 0:02:24]} 10. Be2 {[%clk 0:02:39]}  Nc6 {[%clk 0:02:16]} 11. O-O {[%clk 0:02:36]}  Qd7 {[%clk 0:02:09]} 12. Qc2 {[%clk 0:02:09]}  Kh8 {[%clk 0:01:57]} 13. Rfd1 {[%clk 0:02:04]}  Ng8 {[%clk 0:01:54]} 14. c5 {[%clk 0:02:04]}  f5 {[%clk 0:01:52]} 15. cxd6 {[%clk 0:02:03]}  cxd6 {[%clk 0:01:52]} 16. Bc5 {[%clk 0:01:56]}  Qf7 {[%clk 0:01:43]} 17. Bxd6 {[%clk 0:01:55]}  Nge7 {[%clk 0:01:44]} 18. Nd3 {[%clk 0:01:11]}  Bxa2 {[%clk 0:01:37]} 19. Qc1 {[%clk 0:00:36]}  Bb3 {[%clk 0:01:35]} 20. Rf1 {[%clk 0:00:34]}  Qe6 {[%clk 0:01:33]} 21. Bc5 {[%clk 0:00:24]}  Rf7 {[%clk 0:01:11]} 22. Be3 {[%clk 0:00:20]}  Rg8 {[%clk 0:00:59]} 23. Nc5 {[%clk 0:00:19]}  Qd6 {[%clk 0:00:57]} 24. Nxb3 {[%clk 0:00:19]}  axb3 {[%clk 0:00:58]} 25. Rd1 {[%clk 0:00:19]}  Qg6 {[%clk 0:00:57]} 26. Qb1 {[%clk 0:00:15]}  f4 {[%clk 0:00:56]} 27. Bf2 {[%clk 0:00:14]}  Qh5 {[%clk 0:00:55]} 28. Rd6 {[%clk 0:00:13]}  g5 {[%clk 0:00:55]} 29. Qd1 {[%clk 0:00:13]}  Ng6 {[%clk 0:00:53]} 30. Bc4 {[%clk 0:00:10]}  Rfg7 {[%clk 0:00:48]} 31. Bxg8 {[%clk 0:00:10]}  Rxg8 {[%clk 0:00:49]} 32. Rxc6 {[%clk 0:00:10]}  bxc6 {[%clk 0:00:49]} 33. g4 {[%clk 0:00:10]}  Qh3 {[%clk 0:00:47]} 34. Qd6 {[%clk 0:00:10]}  Kg7 {[%clk 0:00:39]} 35. Ra7+ {[%clk 0:00:10]}  Kh6 {[%clk 0:00:40]} 36. Qc7 {[%clk 0:00:10]}  Nf8 {[%clk 0:00:37]} 37. Bc5 {[%clk 0:00:10]}  Qxf3 {[%clk 0:00:24]} 38. Bxf8+ {[%clk 0:00:10]}  Kg6 {[%clk 0:00:24]} 39. Qxh7+ {[%clk 0:00:10]}  Kf6 {[%clk 0:00:24]} 40. Qf7# {[%clk 0:00:10]} 1-0


[Site "https://www.chess.com"]

[Event "Titled Tuesday Blitz July 11 Early 2023"]
[White "Manukyan, Artyom"]
[Black "Avazkhonov, Alikhon"]
[WhiteFideId "13305786"]
[BlackFideId "14208504"]
[WhiteElo "2583"]
[BlackElo "2453"]
[Result "0-1"]
[Round "7"]
[TimeControl "180+2"]
[Date "2023.07.11"]
[WhiteClock "0:00:10"]
[BlackClock "0:00:04"]
[Board "74"]

1. e4 {[%clk 0:03:00]}  c5 {[%clk 0:02:57]} 2. Nc3 {[%clk 0:03:00]}  d6 {[%clk 0:02:56]} 3. f4 {[%clk 0:03:00]}  Nf6 {[%clk 0:02:57]} 4. Nf3 {[%clk 0:03:01]}  g6 {[%clk 0:02:57]} 5. Bc4 {[%clk 0:03:01]}  Bg7 {[%clk 0:02:56]} 6. O-O {[%clk 0:03:02]}  O-O {[%clk 0:02:55]} 7. d3 {[%clk 0:03:00]}  a6 {[%clk 0:02:56]} 8. Qe1 {[%clk 0:03:00]}  b5 {[%clk 0:02:56]} 9. Bb3 {[%clk 0:03:00]}  Nc6 {[%clk 0:02:56]} 10. Qh4 {[%clk 0:03:00]}  Na5 {[%clk 0:02:53]} 11. f5 {[%clk 0:03:00]}  c4 {[%clk 0:02:33]} 12. dxc4 {[%clk 0:02:51]}  bxc4 {[%clk 0:02:33]} 13. Ba4 {[%clk 0:02:51]}  d5 {[%clk 0:02:28]} 14. fxg6 {[%clk 0:02:45]}  hxg6 {[%clk 0:02:24]} 15. Bh6 {[%clk 0:02:44]}  Qb6+ {[%clk 0:02:13]} 16. Kh1 {[%clk 0:02:41]}  Qxb2 {[%clk 0:01:40]} 17. Ng5 {[%clk 0:01:53]}  Qxc3 {[%clk 0:01:10]} 18. Bxg7 {[%clk 0:01:52]}  Kxg7 {[%clk 0:01:06]} 19. e5 {[%clk 0:01:41]}  Nh5 {[%clk 0:00:36]} 20. g4 {[%clk 0:01:27]}  Qd4 {[%clk 0:00:34]} 21. e6 {[%clk 0:01:18]}  f6 {[%clk 0:00:21]} 22. Nf3 {[%clk 0:01:12]}  Qf4 {[%clk 0:00:20]} 23. gxh5 {[%clk 0:01:05]}  Qxh4 {[%clk 0:00:20]} 24. Nxh4 {[%clk 0:01:06]}  Bxe6 {[%clk 0:00:17]} 25. Nxg6 {[%clk 0:01:04]}  Rf7 {[%clk 0:00:18]} 26. Rg1 {[%clk 0:01:04]}  Kh6 {[%clk 0:00:14]} 27. Nf4 {[%clk 0:01:04]}  Bf5 {[%clk 0:00:15]} 28. Rae1 {[%clk 0:01:01]}  Be4+ {[%clk 0:00:09]} 29. Rxe4 {[%clk 0:00:55]}  dxe4 {[%clk 0:00:10]} 30. Rg6+ {[%clk 0:00:55]}  Kh7 {[%clk 0:00:10]} 31. Bd7 {[%clk 0:00:53]}  e5 {[%clk 0:00:08]} 32. Nd5 {[%clk 0:00:50]}  Rg8 {[%clk 0:00:03]} 33. Bf5 {[%clk 0:00:50]}  Kh8 {[%clk 0:00:01]} 34. Bxe4 {[%clk 0:00:19]}  Rxg6 {[%clk 0:00:01]} 35. hxg6 {[%clk 0:00:20]}  Rf8 {[%clk 0:00:01]} 36. Bf5 {[%clk 0:00:20]}  Kg7 {[%clk 0:00:02]} 37. h4 {[%clk 0:00:20]}  Nc6 {[%clk 0:00:02]} 38. c3 {[%clk 0:00:18]}  Rh8 {[%clk 0:00:02]} 39. Kg2 {[%clk 0:00:16]}  Rxh4 {[%clk 0:00:03]} 40. Kf3 {[%clk 0:00:16]}  Rh5 {[%clk 0:00:02]} 41. Ke4 {[%clk 0:00:16]}  Rh4+ {[%clk 0:00:02]} 42. Kf3 {[%clk 0:00:16]}  Rh5 {[%clk 0:00:02]} 43. Ke4 {[%clk 0:00:16]}  Rg5 {[%clk 0:00:02]} 44. Ne3 {[%clk 0:00:14]}  Ne7 {[%clk 0:00:02]} 45. Be6 {[%clk 0:00:10]}  Nxg6 {[%clk 0:00:02]} 46. Bxc4 {[%clk 0:00:10]}  Kf8 {[%clk 0:00:02]} 47. Bxa6 {[%clk 0:00:10]}  Ne7 {[%clk 0:00:03]} 48. Bd3 {[%clk 0:00:09]}  Rg3 {[%clk 0:00:03]} 49. a4 {[%clk 0:00:09]}  f5+ {[%clk 0:00:03]} 50. Nxf5 {[%clk 0:00:05]}  Nxf5 {[%clk 0:00:04]} 51. a5 {[%clk 0:00:05]}  Nd6+ {[%clk 0:00:02]} 52. Kxe5 {[%clk 0:00:06]}  Rxd3 {[%clk 0:00:03]} 53. a6 {[%clk 0:00:07]}  Rxc3 {[%clk 0:00:03]} 54. Kxd6 {[%clk 0:00:08]}  Ra3 {[%clk 0:00:03]} 55. Kc6 {[%clk 0:00:08]}  Rxa6+ {[%clk 0:00:04]} 56. Kb7 {[%clk 0:00:09]}  Rh6 {[%clk 0:00:04]} 57. Kc8 {[%clk 0:00:10]} 0-1


[Site "https://www.chess.com"]

[Event "Titled Tuesday Blitz July 11 Early 2023"]
[White "Wang2007"]
[Black "robertoalejandro10"]
[WhiteElo "2330"]
[BlackElo "2560"]
[Result "0-1"]
[Round "7"]
[TimeControl "180+2"]
[Date "2023.07.11"]
[WhiteClock "0:00:03"]
[BlackClock "0:00:06"]
[Board "78"]

1. d4 {[%clk 0:03:00]}  Nf6 {[%clk 0:02:58]} 2. c4 {[%clk 0:03:00]}  c5 {[%clk 0:02:57]} 3. d5 {[%clk 0:02:59]}  d6 {[%clk 0:02:58]} 4. Nc3 {[%clk 0:02:58]}  g6 {[%clk 0:02:58]} 5. e4 {[%clk 0:02:58]}  Bg7 {[%clk 0:02:59]} 6. Bd3 {[%clk 0:02:55]}  O-O {[%clk 0:02:59]} 7. h3 {[%clk 0:02:56]}  Na6 {[%clk 0:02:59]} 8. Nf3 {[%clk 0:02:50]}  Nc7 {[%clk 0:02:59]} 9. O-O {[%clk 0:02:49]}  a6 {[%clk 0:02:59]} 10. a4 {[%clk 0:02:48]}  Rb8 {[%clk 0:02:59]} 11. Bf4 {[%clk 0:02:40]}  Bd7 {[%clk 0:03:00]} 12. Bh2 {[%clk 0:02:18]}  b5 {[%clk 0:02:58]} 13. axb5 {[%clk 0:02:17]}  axb5 {[%clk 0:02:58]} 14. e5 {[%clk 0:02:17]}  Nfe8 {[%clk 0:02:58]} 15. b3 {[%clk 0:01:45]}  Rb6 {[%clk 0:02:08]} 16. Re1 {[%clk 0:01:26]}  e6 {[%clk 0:02:03]} 17. Ne4 {[%clk 0:01:13]}  exd5 {[%clk 0:01:46]} 18. Nxd6 {[%clk 0:00:59]}  Nxd6 {[%clk 0:01:17]} 19. exd6 {[%clk 0:00:57]}  Ne6 {[%clk 0:01:17]} 20. cxd5 {[%clk 0:00:55]}  Nd4 {[%clk 0:01:08]} 21. Ra7 {[%clk 0:00:46]}  Nf5 {[%clk 0:00:56]} 22. Ne5 {[%clk 0:00:40]}  Rxd6 {[%clk 0:00:44]} 23. Nc6 {[%clk 0:00:23]}  Bxc6 {[%clk 0:00:18]} 24. Bxd6 {[%clk 0:00:23]}  Qxd6 {[%clk 0:00:19]} 25. Bxf5 {[%clk 0:00:22]}  gxf5 {[%clk 0:00:15]} 26. dxc6 {[%clk 0:00:22]}  Qxc6 {[%clk 0:00:16]} 27. Qd7 {[%clk 0:00:18]}  Qg6 {[%clk 0:00:12]} 28. Rc7 {[%clk 0:00:12]}  Bd4 {[%clk 0:00:11]} 29. Re8 {[%clk 0:00:10]}  Rxe8 {[%clk 0:00:10]} 30. Qxe8+ {[%clk 0:00:11]}  Kg7 {[%clk 0:00:11]} 31. Qxb5 {[%clk 0:00:07]}  Qg3 {[%clk 0:00:08]} 32. Qb7 {[%clk 0:00:04]}  Qxf2+ {[%clk 0:00:07]} 33. Kh2 {[%clk 0:00:03]}  Be5+ {[%clk 0:00:06]} 34. Kh1 {[%clk 0:00:03]}  Qf1# {[%clk 0:00:06]} 0-1


[Site "https://www.chess.com"]

[Event "Titled Tuesday Blitz July 11 Early 2023"]
[White "Atakhan, Abtin"]
[Black "lagarto93"]
[WhiteFideId "22502203"]
[WhiteElo "2729"]
[BlackElo "2492"]
[Result "0-1"]
[Round "7"]
[TimeControl "180+2"]
[Date "2023.07.11"]
[WhiteClock "0:00:17"]
[BlackClock "0:01:12"]
[Board "80"]

1. Nf3 {[%clk 0:03:00]}  Nf6 {[%clk 0:02:59]} 2. g3 {[%clk 0:03:01]}  b6 {[%clk 0:02:59]} 3. Bg2 {[%clk 0:03:02]}  Bb7 {[%clk 0:03:00]} 4. c4 {[%clk 0:03:02]}  e6 {[%clk 0:03:00]} 5. b3 {[%clk 0:03:02]}  Be7 {[%clk 0:03:01]} 6. Bb2 {[%clk 0:03:03]}  O-O {[%clk 0:03:01]} 7. O-O {[%clk 0:03:03]}  c5 {[%clk 0:03:02]} 8. d4 {[%clk 0:03:04]}  d6 {[%clk 0:03:02]} 9. Nc3 {[%clk 0:03:03]}  cxd4 {[%clk 0:03:02]} 10. Qxd4 {[%clk 0:03:03]}  a6 {[%clk 0:02:57]} 11. Rfd1 {[%clk 0:03:01]}  Qc7 {[%clk 0:02:57]} 12. Rac1 {[%clk 0:03:00]}  Nbd7 {[%clk 0:02:57]} 13. Ba3 {[%clk 0:02:50]}  Nc5 {[%clk 0:02:50]} 14. b4 {[%clk 0:02:48]}  Nce4 {[%clk 0:02:48]} 15. Bb2 {[%clk 0:02:43]}  Nxc3 {[%clk 0:02:42]} 16. Bxc3 {[%clk 0:02:40]}  Rac8 {[%clk 0:02:41]} 17. Bb2 {[%clk 0:02:39]}  Rfd8 {[%clk 0:02:41]} 18. Qe3 {[%clk 0:02:27]}  Nd7 {[%clk 0:02:19]} 19. Bh3 {[%clk 0:02:13]}  Bf6 {[%clk 0:02:14]} 20. Nd4 {[%clk 0:02:07]}  Ne5 {[%clk 0:02:08]} 21. Nxe6 {[%clk 0:02:02]}  fxe6 {[%clk 0:02:07]} 22. Bxe6+ {[%clk 0:02:03]}  Kh8 {[%clk 0:02:07]} 23. Bxc8 {[%clk 0:02:03]}  Rxc8 {[%clk 0:02:07]} 24. Qf4 {[%clk 0:01:44]}  Ng6 {[%clk 0:01:59]} 25. Qd2 {[%clk 0:01:40]}  Bxb2 {[%clk 0:01:54]} 26. Qxb2 {[%clk 0:01:40]}  Ne5 {[%clk 0:01:53]} 27. Rd4 {[%clk 0:01:34]}  Qc6 {[%clk 0:01:51]} 28. f3 {[%clk 0:01:32]}  Nxf3+ {[%clk 0:01:48]} 29. exf3 {[%clk 0:01:32]}  Qxf3 {[%clk 0:01:49]} 30. Qd2 {[%clk 0:00:53]}  Qh1+ {[%clk 0:01:45]} 31. Kf2 {[%clk 0:00:54]}  Qf3+ {[%clk 0:01:27]} 32. Kg1 {[%clk 0:00:50]}  Re8 {[%clk 0:01:13]} 33. Rd5 {[%clk 0:00:17]}  Re2 {[%clk 0:01:12]} 0-1


[Site "https://www.chess.com"]

[Event "Titled Tuesday Blitz July 11 Early 2023"]
[White "Novikov, Evgenij"]
[Black "Gunina, Valentina"]
[WhiteFideId "4125380"]
[BlackFideId "4167570"]
[WhiteElo "2490"]
[BlackElo "2710"]
[Result "0-1"]
[Round "7"]
[TimeControl "180+2"]
[Date "2023.07.11"]
[WhiteClock "0:00:00"]
[BlackClock "0:00:08"]
[Board "81"]

1. d4 {[%clk 0:02:59]}  d5 {[%clk 0:02:59]} 2. c4 {[%clk 0:02:58]}  c6 {[%clk 0:02:59]} 3. Nf3 {[%clk 0:02:57]}  Nf6 {[%clk 0:02:59]} 4. cxd5 {[%clk 0:02:56]}  cxd5 {[%clk 0:02:58]} 5. Nc3 {[%clk 0:02:56]}  Nc6 {[%clk 0:02:58]} 6. Bf4 {[%clk 0:02:56]}  a6 {[%clk 0:02:58]} 7. e3 {[%clk 0:02:56]}  Bg4 {[%clk 0:02:53]} 8. Be2 {[%clk 0:02:55]}  e6 {[%clk 0:02:50]} 9. O-O {[%clk 0:02:55]}  Bd6 {[%clk 0:02:48]} 10. Bxd6 {[%clk 0:02:54]}  Qxd6 {[%clk 0:02:47]} 11. Ne1 {[%clk 0:02:53]}  Bxe2 {[%clk 0:02:47]} 12. Qxe2 {[%clk 0:02:54]}  O-O {[%clk 0:02:47]} 13. Nd3 {[%clk 0:02:53]}  Rac8 {[%clk 0:02:47]} 14. Rac1 {[%clk 0:02:50]}  Rc7 {[%clk 0:02:47]} 15. Na4 {[%clk 0:02:44]}  Nd7 {[%clk 0:02:41]} 16. Ndc5 {[%clk 0:02:34]}  Nxc5 {[%clk 0:02:33]} 17. Nxc5 {[%clk 0:02:32]}  Rfc8 {[%clk 0:02:33]} 18. Qd2 {[%clk 0:02:27]}  g6 {[%clk 0:02:25]} 19. g3 {[%clk 0:02:24]}  h5 {[%clk 0:02:25]} 20. h4 {[%clk 0:02:23]}  e5 {[%clk 0:02:24]} 21. Nb3 {[%clk 0:02:02]}  Qe6 {[%clk 0:02:23]} 22. Kg2 {[%clk 0:01:42]}  Re7 {[%clk 0:02:08]} 23. dxe5 {[%clk 0:01:33]}  Qxe5 {[%clk 0:02:06]} 24. Rc3 {[%clk 0:01:28]}  Rce8 {[%clk 0:02:01]} 25. Rd1 {[%clk 0:01:25]}  Qe4+ {[%clk 0:01:52]} 26. f3 {[%clk 0:01:22]}  Qb4 {[%clk 0:01:52]} 27. Qxd5 {[%clk 0:01:07]}  Rxe3 {[%clk 0:01:49]} 28. Rxe3 {[%clk 0:01:08]}  Rxe3 {[%clk 0:01:49]} 29. Qd2 {[%clk 0:00:54]}  Qb6 {[%clk 0:01:33]} 30. Re1 {[%clk 0:00:54]}  Rxe1 {[%clk 0:01:29]} 31. Qxe1 {[%clk 0:00:55]}  Qd8 {[%clk 0:01:28]} 32. Qd2 {[%clk 0:00:53]}  Qe7 {[%clk 0:01:25]} 33. Kf2 {[%clk 0:00:50]}  Ne5 {[%clk 0:01:18]} 34. Qe3 {[%clk 0:00:44]}  Qc7 {[%clk 0:01:15]} 35. Kg2 {[%clk 0:00:40]}  Qc2+ {[%clk 0:01:12]} 36. Qd2 {[%clk 0:00:39]}  Qd3 {[%clk 0:00:58]} 37. Qxd3 {[%clk 0:00:31]}  Nxd3 {[%clk 0:00:58]} 38. Na5 {[%clk 0:00:32]}  b5 {[%clk 0:00:58]} 39. b3 {[%clk 0:00:28]}  Kf8 {[%clk 0:00:57]} 40. g4 {[%clk 0:00:23]}  Ke7 {[%clk 0:00:57]} 41. gxh5 {[%clk 0:00:23]}  gxh5 {[%clk 0:00:57]} 42. a3 {[%clk 0:00:21]}  Kd6 {[%clk 0:00:54]} 43. Kg3 {[%clk 0:00:21]}  f6 {[%clk 0:00:42]} 44. b4 {[%clk 0:00:18]}  Kd5 {[%clk 0:00:41]} 45. f4 {[%clk 0:00:14]}  Ke4 {[%clk 0:00:39]} 46. Nc6 {[%clk 0:00:14]}  Nxf4 {[%clk 0:00:37]} 47. Nb8 {[%clk 0:00:14]}  f5 {[%clk 0:00:28]} 48. Nxa6 {[%clk 0:00:13]}  Ke3 {[%clk 0:00:29]} 49. Nc7 {[%clk 0:00:11]}  Ne2+ {[%clk 0:00:29]} 50. Kg2 {[%clk 0:00:11]}  Nd4 {[%clk 0:00:29]} 51. Nd5+ {[%clk 0:00:09]}  Ke4 {[%clk 0:00:29]} 52. Nf6+ {[%clk 0:00:09]}  Kf4 {[%clk 0:00:25]} 53. Nxh5+ {[%clk 0:00:10]}  Kg4 {[%clk 0:00:26]} 54. Nf6+ {[%clk 0:00:08]}  Kxh4 {[%clk 0:00:26]} 55. Kf2 {[%clk 0:00:07]}  Nc2 {[%clk 0:00:24]} 56. Nd5 {[%clk 0:00:05]}  Nxa3 {[%clk 0:00:24]} 57. Kf3 {[%clk 0:00:05]}  Kg5 {[%clk 0:00:24]} 58. Nc3 {[%clk 0:00:04]}  Kf6 {[%clk 0:00:22]} 59. Kf4 {[%clk 0:00:05]}  Ke6 {[%clk 0:00:22]} 60. Ke3 {[%clk 0:00:04]}  Ke5 {[%clk 0:00:23]} 61. Kf3 {[%clk 0:00:04]}  f4 {[%clk 0:00:20]} 62. Ne2 {[%clk 0:00:04]}  Nc2 {[%clk 0:00:18]} 63. Nxf4 {[%clk 0:00:04]}  Nxb4 {[%clk 0:00:18]} 64. Ne2 {[%clk 0:00:03]}  Nd5 {[%clk 0:00:16]} 65. Nc1 {[%clk 0:00:03]}  Kd4 {[%clk 0:00:15]} 66. Ke2 {[%clk 0:00:04]}  Kc3 {[%clk 0:00:16]} 67. Kd1 {[%clk 0:00:04]}  Ne3+ {[%clk 0:00:14]} 68. Ke2 {[%clk 0:00:03]}  Nc2 {[%clk 0:00:12]} 69. Nd3 {[%clk 0:00:03]}  Nd4+ {[%clk 0:00:11]} 70. Ke3 {[%clk 0:00:04]}  Nf5+ {[%clk 0:00:11]} 71. Ke4 {[%clk 0:00:04]}  Nd6+ {[%clk 0:00:10]} 72. Ke3 {[%clk 0:00:04]}  Nc4+ {[%clk 0:00:11]} 73. Ke2 {[%clk 0:00:04]}  Na3 {[%clk 0:00:09]} 74. Nc1 {[%clk 0:00:03]}  Kc2 {[%clk 0:00:08]} 75. Nd3 {[%clk 0:00:03]}  Nb1 {[%clk 0:00:08]} 76. Nc5 {[%clk 0:00:03]}  Nc3+ {[%clk 0:00:08]} 77. Ke3 {[%clk 0:00:03]}  Na4 {[%clk 0:00:07]} 78. Nd3 {[%clk 0:00:02]}  Kc3 {[%clk 0:00:08]} 79. Ne5 {[%clk 0:00:02]}  b4 {[%clk 0:00:07]} 80. Nd3 {[%clk 0:00:00]}  b3 {[%clk 0:00:08]} 0-1


[Site "https://www.chess.com"]

[Event "Titled Tuesday Blitz July 11 Early 2023"]
[White "Bettalli, Francesco"]
[Black "Begmuratov, Alisher"]
[WhiteFideId "2816453"]
[BlackFideId "14203367"]
[WhiteElo "2490"]
[BlackElo "2659"]
[Result "0-1"]
[Round "7"]
[TimeControl "180+2"]
[Date "2023.07.11"]
[WhiteClock "0:02:22"]
[BlackClock "0:02:09"]
[Board "82"]

1. d4 {[%clk 0:02:50]}  Nf6 {[%clk 0:02:58]} 2. Nc3 {[%clk 0:02:49]}  d5 {[%clk 0:02:58]} 3. Bf4 {[%clk 0:02:49]}  c6 {[%clk 0:02:58]} 4. e3 {[%clk 0:02:49]}  Bf5 {[%clk 0:02:57]} 5. f3 {[%clk 0:02:49]}  h5 {[%clk 0:02:56]} 6. Bd3 {[%clk 0:02:44]}  Bxd3 {[%clk 0:02:56]} 7. Qxd3 {[%clk 0:02:45]}  e6 {[%clk 0:02:56]} 8. Nge2 {[%clk 0:02:42]}  Bd6 {[%clk 0:02:53]} 9. O-O-O {[%clk 0:02:40]}  Bxf4 {[%clk 0:02:53]} 10. Nxf4 {[%clk 0:02:41]}  Qd6 {[%clk 0:02:51]} 11. h4 {[%clk 0:02:41]}  Nbd7 {[%clk 0:02:49]} 12. Kb1 {[%clk 0:02:41]}  O-O-O {[%clk 0:02:49]} 13. g3 {[%clk 0:02:40]}  e5 {[%clk 0:02:48]} 14. dxe5 {[%clk 0:02:40]}  Nxe5 {[%clk 0:02:48]} 15. Qf5+ {[%clk 0:02:41]}  Kb8 {[%clk 0:02:47]} 16. e4 {[%clk 0:02:41]}  g6 {[%clk 0:02:33]} 17. Nxg6 {[%clk 0:02:39]}  fxg6 {[%clk 0:02:32]} 18. Qf4 {[%clk 0:02:38]}  Nc4 {[%clk 0:02:26]} 19. Qg5 {[%clk 0:02:33]}  Qb4 {[%clk 0:02:22]} 20. Qc1 {[%clk 0:02:32]}  dxe4 {[%clk 0:02:20]} 21. fxe4 {[%clk 0:02:31]}  Ng4 {[%clk 0:02:15]} 22. Rhe1 {[%clk 0:02:24]}  Rxd1 {[%clk 0:02:10]} 23. Rxd1 {[%clk 0:02:24]}  Nge3 {[%clk 0:02:10]} 24. Rd7 {[%clk 0:02:24]}  Na3+ {[%clk 0:02:09]} 25. Ka1 {[%clk 0:02:22]}  Nexc2+ {[%clk 0:02:09]} 0-1


[Site "https://www.chess.com"]

[Event "Titled Tuesday Blitz July 11 Early 2023"]
[White "Kantans, Toms"]
[Black "Kleiman, Jake"]
[WhiteFideId "11602945"]
[BlackFideId "2020041"]
[WhiteElo "2654"]
[BlackElo "2487"]
[Result "0-1"]
[Round "7"]
[TimeControl "180+2"]
[Date "2023.07.11"]
[WhiteClock "0:00:00"]
[BlackClock "0:00:16"]
[Board "83"]

1. e4 {[%clk 0:03:00]}  e5 {[%clk 0:02:56]} 2. Nf3 {[%clk 0:03:00]}  Nc6 {[%clk 0:02:57]} 3. d4 {[%clk 0:03:00]}  exd4 {[%clk 0:02:56]} 4. Nxd4 {[%clk 0:03:01]}  Bb4+ {[%clk 0:02:54]} 5. c3 {[%clk 0:03:00]}  Bc5 {[%clk 0:02:55]} 6. Be3 {[%clk 0:03:00]}  Bb6 {[%clk 0:02:54]} 7. Nf5 {[%clk 0:03:00]}  Bxe3 {[%clk 0:02:53]} 8. Nxe3 {[%clk 0:03:01]}  Nf6 {[%clk 0:02:54]} 9. f3 {[%clk 0:03:01]}  O-O {[%clk 0:02:54]} 10. c4 {[%clk 0:03:01]}  d6 {[%clk 0:02:55]} 11. Nc3 {[%clk 0:03:01]}  Nd7 {[%clk 0:02:54]} 12. Qd2 {[%clk 0:02:58]}  Nc5 {[%clk 0:02:53]} 13. Ncd5 {[%clk 0:02:49]}  f5 {[%clk 0:02:50]} 14. b4 {[%clk 0:02:18]}  Na4 {[%clk 0:02:46]} 15. Bd3 {[%clk 0:02:04]}  Ne5 {[%clk 0:02:21]} 16. O-O {[%clk 0:01:17]}  c6 {[%clk 0:01:52]} 17. Nf4 {[%clk 0:01:08]}  fxe4 {[%clk 0:01:44]} 18. fxe4 {[%clk 0:01:07]}  a5 {[%clk 0:01:37]} 19. a3 {[%clk 0:01:00]}  Qb6 {[%clk 0:01:21]} 20. c5 {[%clk 0:00:47]}  Qc7 {[%clk 0:00:50]} 21. cxd6 {[%clk 0:00:42]}  Qxd6 {[%clk 0:00:49]} 22. Nc4 {[%clk 0:00:42]}  Qd4+ {[%clk 0:00:45]} 23. Kh1 {[%clk 0:00:26]}  Nxc4 {[%clk 0:00:42]} 24. Qa2 {[%clk 0:00:18]}  b5 {[%clk 0:00:41]} 25. Rad1 {[%clk 0:00:11]}  Bg4 {[%clk 0:00:29]} 26. Be2 {[%clk 0:00:11]}  Qxe4 {[%clk 0:00:23]} 27. Bxg4 {[%clk 0:00:06]}  Rxf4 {[%clk 0:00:22]} 28. Rfe1 {[%clk 0:00:06]}  Qg6 {[%clk 0:00:19]} 29. Be6+ {[%clk 0:00:05]}  Kh8 {[%clk 0:00:19]} 30. Qe2 {[%clk 0:00:01]}  h6 {[%clk 0:00:18]} 31. Rd3 {[%clk 0:00:01]}  Re8 {[%clk 0:00:17]} 32. h3 {[%clk 0:00:00]}  Qf6 {[%clk 0:00:16]} 0-1


[Site "https://www.chess.com"]